fUSD/lending_fUSD_20260508
["ID","MTS","AMOUNT","RATE_DAILY","PERIOD"]
[421854437,1778231442000,-792.63,0.00019492,2]
[421854454,1778231442000,-281.0,0.0002,2]
[421854449,1778231442000,-2124.0,0.0001999,2]
[421854445,1778231442000,-3556.38,0.0001983,2]
[421854447,1778231442000,-792.82,0.00019968,2]
[421854451,1778231442000,-13071.02838473,0.0002,2]
[421854450,1778231442000,-200.0,0.0002,2]
[421854448,1778231442000,-2631.39,0.00019968,2]
[421854453,1778231442000,-158.0,0.0002,2]
[421854452,1778231442000,-3603.73512726,0.0002,2]
[421854456,1778231442000,-152.0,0.0002,2]
[421854460,1778231442000,-207.0,0.0002,2]
[421854458,1778231442000,-160.01506487,0.0002,2]
[421854459,1778231442000,-160.01506487,0.0002,2]
[421854461,1778231442000,-157.0,0.0002,2]
[421854455,1778231442000,-627.0,0.0002,2]
[421854433,1778231442000,-711.97705762,0.00019393,2]
[421854404,1778231442000,-151.0,0.00018861,2]
[421854430,1778231442000,-711.97705762,0.00019289,2]
[421854402,1778231442000,-151.0,0.00018751,2]
[421854457,1778231442000,-160.01506487,0.0002,2]
[421854403,1778231442000,-151.0,0.00018806,2]
[421854416,1778231442000,-500.0,0.00019178,2]
[421854405,1778231442000,-4000.25,0.00018916,2]
[421854406,1778231442000,-151.0,0.00018916,2]
[421854407,1778231442000,-2970.0,0.00018917,2]
[421854408,1778231442000,-181.08010149,0.00018969,2]
[421854409,1778231442000,-151.0,0.00018971,2]
[421854412,1778231442000,-1000.0,0.00019,2]
[421854414,1778231442000,-314.0,0.00019,2]
[421854413,1778231442000,-844.59974217,0.00019,2]
[421854411,1778231442000,-308.0,0.00019,2]
[421854431,1778231442000,-711.97705762,0.00019365,2]
[421854410,1778231442000,-338.625981,0.00019,2]
[421854417,1778231442000,-500.0,0.00019178,2]
[421854429,1778231442000,-500.0,0.00019281,2]
[421854419,1778231442000,-500.0,0.00019178,2]
[421854418,1778231442000,-500.0,0.00019178,2]
[421854420,1778231442000,-500.0,0.00019178,2]
[421854421,1778231442000,-500.0,0.00019178,2]
[421854428,1778231442000,-474.35,0.0001918,2]
[421854422,1778231442000,-500.0,0.00019178,2]
[421854426,1778231442000,-571.3861099,0.00019178,2]
[421854424,1778231442000,-500.0,0.00019178,2]
[421854423,1778231442000,-500.0,0.00019178,2]
[421854427,1778231442000,-150.0,0.00019178,2]
[421854425,1778231442000,-500.0,0.00019178,2]
[421854415,1778231442000,-711.97705762,0.00019163,2]
[421854466,1778231442000,-644.21381956,0.00020006,2]
[421854462,1778231442000,-630.0,0.0002,2]
[421854464,1778231442000,-151.10015143,0.0002,20]
[421854508,1778231442000,-2000.0,0.00021216,2]
[421854509,1778231442000,-6030.53,0.00021307,2]
[421854504,1778231442000,-209.40437684,0.00021161,2]
[421854511,1778231442000,-1185.46,0.000214,2]
[421854506,1778231442000,-150.0,0.0002119,2]
[421854507,1778231442000,-3556.4,0.000212,2]
[421854514,1778231442000,-500.0,0.00021764,2]
[421854515,1778231442000,-420.0,0.0002189,7]
[421854525,1778231442000,-160.8662388,0.00022,2]
[421854527,1778231442000,-207.0,0.00022,2]
[421854523,1778231442000,-281.0,0.00022,2]
[421854522,1778231442000,-165.11776604,0.00022,2]
[421854521,1778231442000,-160.0,0.00022,2]
[421854503,1778231442000,-474.35,0.00021098,2]
[421854518,1778231442000,-1000.0,0.00021918,5]
[421854519,1778231442000,-1020.7,0.00021918,5]
[421854524,1778231442000,-627.0,0.00022,2]
[421854520,1778231442000,-150.26,0.00022,2]
[421854529,1778231442000,-630.0,0.00022,2]
[421854531,1778231442000,-243.31593528,0.0002211,2]
[421854530,1778231442000,-260.73,0.00022,14]
[421854532,1778231442000,-1488.0783074,0.00022154,2]
[421854533,1778231442000,-136936.7724218,0.00022154,2]
[421854537,1778231442000,-151.0,0.00022154,2]
[421854536,1778231442000,-151.0,0.00022154,2]
[421854534,1778231442000,-153.589201,0.00022154,2]
[421854535,1778231442000,-151.0,0.00022154,2]
[421854468,1778231442000,-1185.46,0.0002003,2]
[421854517,1778231442000,-5000.0,0.00021918,2]
[421854510,1778231442000,-420.9,0.000214,2]
[421854516,1778231442000,-2487.0,0.00021896,2]
[421854505,1778231442000,-150.0,0.0002119,2]
[421854470,1778231442000,-395.15,0.0002003,2]
[421854501,1778231442000,-417.0,0.00021057,2]
[421854475,1778231442000,-150.0,0.000202,10]
[421854474,1778231442000,-1000.0,0.00020121,2]
[421854484,1778231442000,-644.21381956,0.00020552,2]
[421854481,1778231442000,-704.3,0.00020381,2]
[421854482,1778231442000,-2000.0,0.00020482,2]
[421854472,1778231442000,-194.72792766,0.00020065,2]
[421854476,1778231442000,-644.21381956,0.0002024,2]
[421854480,1778231442000,-500.0,0.0002038,2]
[421854477,1778231442000,-2000.0,0.00020273,2]
[421854479,1778231442000,-644.21381956,0.00020342,2]
[421854483,1778231442000,-21775.08,0.00020548,2]
[421854485,1778231442000,-201.93286099,0.00020613,2]
[421854478,1778231442000,-3654.0,0.00020321,2]
[421854488,1778231442000,-173.23,0.00020796,2]
[421854513,1778231442000,-217.15233878,0.00021709,2]
[421854486,1778231442000,-1500.0,0.00020668,2]
[421854499,1778231442000,-2010.17,0.00021044,2]
[421854492,1778231442000,-627.0,0.00021,2]
[421854493,1778231442000,-152.0,0.00021,2]
[421854496,1778231442000,-167.46755806,0.00021,2]
[421854498,1778231442000,-630.0,0.00021,2]
[421854512,1778231442000,-395.16,0.000214,2]
[421854494,1778231442000,-207.0,0.00021,2]
[421854491,1778231442000,-281.0,0.00021,2]
[421854487,1778231442000,-644.21381956,0.00020761,2]
[421854489,1778231442000,-1608.23,0.00020855,2]
[421854490,1778231442000,-158.0,0.00021,2]
[421854584,1778231443000,-711.97705762,0.00024299,2]
[421854581,1778231443000,-237.22075126,0.00024071,2]
[421854582,1778231443000,-150.0,0.0002419,2]
[421854574,1778231443000,-7433.0,0.00023784,2]
[421854578,1778231443000,-207.0,0.00024,2]
[421854580,1778231443000,-417.0,0.00024057,2]
[421854577,1778231443000,-627.0,0.00024,2]
[421854599,1778231443000,-250.39,0.00024658,2]
[421854575,1778231443000,-188.58455797,0.00023901,2]
[421854576,1778231443000,-281.0,0.00024,2]
[421854573,1778231443000,-150.96922064,0.000235,2]
[421854583,1778231443000,-1151.09077381,0.0002421,2]
[421854579,1778231443000,-630.0,0.00024,2]
[421854585,1778231443000,-704.3,0.00024324,2]
[421854600,1778231443000,-711.97705762,0.00024708,2]
[421854586,1778231443000,-711.97705762,0.00024325,2]
[421854590,1778231443000,-711.97705762,0.00024503,2]
[421854588,1778231443000,-711.97705762,0.00024399,2]
[421854589,1778231443000,-711.97705762,0.00024466,2]
[421854591,1778231443000,-167.88359487,0.0002455,15]
[421854592,1778231443000,-711.97705762,0.00024605,2]
[421854594,1778231443000,-711.97705762,0.00024628,2]
[421854595,1778231443000,-711.97705762,0.0002465,2]
[421854593,1778231443000,-711.97705762,0.00024619,2]
[421854597,1778231443000,-180.49,0.00024658,2]
[421854596,1778231443000,-150.0,0.00024658,2]
[421854603,1778231443000,-711.97705762,0.0002475,2]
[421854572,1778231443000,-7370.45576561,0.000235,30]
[421854587,1778231443000,-711.97705762,0.00024372,2]
[421854571,1778231443000,-242.15909246,0.00023353,2]
[421854540,1778231443000,-250.24,0.00022154,2]
[421854568,1778231443000,-630.0,0.00023,2]
[421854539,1778231443000,-151.0,0.00022154,2]
[421854541,1778231443000,-151.0,0.00022154,2]
[421854538,1778231443000,-151.0,0.00022154,2]
[421854542,1778231443000,-151.0,0.00022154,2]
[421854544,1778231443000,-256.682543,0.00022154,2]
[421854553,1778231443000,-2010.18,0.00022414,2]
[421854543,1778231443000,-204.531744,0.00022154,2]
[421854545,1778231443000,-529.0,0.00022229,5]
[421854548,1778231443000,-225.18697532,0.00022257,2]
[421854546,1778231443000,-524.0,0.00022242,5]
[421854547,1778231443000,-421.0,0.00022242,5]
[421854554,1778231443000,-1627.65,0.00022466,2]
[421854550,1778231443000,-2000.0,0.00022344,2]
[421854551,1778231443000,-500.0,0.00022352,2]
[421854549,1778231443000,-161.75,0.00022298,2]
[421854552,1778231443000,-704.3,0.00022353,2]
[421854556,1778231443000,-719.19942127,0.00022567,2]
[421854566,1778231443000,-627.0,0.00023,2]
[421854555,1778231443000,-4314.0,0.0002255,7]
[421854567,1778231443000,-207.0,0.00023,2]
[421854563,1778231443000,-784.65,0.00022933,2]
[421854561,1778231443000,-233.51889341,0.00022805,2]
[421854557,1778231443000,-3651.47464223,0.000226,2]
[421854564,1778231443000,-2013.30087734,0.00023,2]
[421854559,1778231443000,-1089.2,0.00022691,2]
[421854565,1778231443000,-281.0,0.00023,2]
[421854558,1778231443000,-3521.0,0.00022654,2]
[421854560,1778231443000,-530.02045411,0.0002271,2]
[421854562,1778231443000,-1769.0,0.0002288,7]
[421854570,1778231443000,-2000.0,0.00023073,2]
[421854604,1778231443000,-8560.0,0.00024856,2]
[421854569,1778231443000,-474.35,0.00023016,2]
[421854601,1778231443000,-711.97705762,0.00024719,2]
[421854644,1778231443000,-711.97705762,0.00025021,2]
[421854659,1778231443000,-250.39,0.00025234,30]
[421854661,1778231443000,-3695.0,0.00025433,2]
[421854663,1778231443000,-39389.3545299,0.000255,2]
[421854649,1778231443000,-81416.0,0.000251,2]
[421854665,1778231443000,-200.0,0.00025517,2]
[421854653,1778231443000,-711.97705762,0.00025131,2]
[421854669,1778231443000,-200.0,0.00025517,2]
[421854667,1778231443000,-200.0,0.00025517,2]
[421854671,1778231443000,-200.0,0.00025517,2]
[421854674,1778231443000,-200.0,0.00025517,2]
[421854676,1778231443000,-200.0,0.00025517,2]
[421854678,1778231443000,-200.0,0.00025517,2]
[421854680,1778231443000,-284.0,0.00025517,2]
[421854686,1778231443000,-152.0,0.00025552,3]
[421854688,1778231443000,-317.75632109,0.00025753,2]
[421854684,1778231443000,-1582.0,0.00025542,3]
[421854690,1778231443000,-230.11,0.00025811,7]
[421854682,1778231443000,-250.39,0.00025523,2]
[421854694,1778231443000,-2027.40845367,0.00025874,2]
[421854692,1778231443000,-250.39,0.00025811,7]
[421854696,1778231443000,-5529.0,0.000259,3]
[421854710,1778231443000,-3500.0,0.00026325,2]
[421854698,1778231443000,-214.68143985,0.00026,7]
[421854699,1778231443000,-1663.73647626,0.00026013,2]
[421854705,1778231443000,-420.9,0.000262,7]
[421854701,1778231443000,-237.0,0.00026173,2]
[421854703,1778231443000,-197.0,0.00026173,2]
[421854598,1778231443000,-1000.0,0.00024658,2]
[421854647,1778231443000,-711.97705762,0.00025053,2]
[421854651,1778231443000,-711.97705762,0.00025101,2]
[421854707,1778231443000,-704.3,0.00026296,2]
[421854657,1778231443000,-250.0,0.00025205,2]
[421854655,1778231443000,-207.99170503,0.000252,7]
[421854605,1778231443000,-711.97705762,0.00024884,2]
[421854606,1778231443000,-711.97705762,0.00024911,2]
[421854618,1778231443000,-711.97705762,0.00024945,2]
[421854616,1778231443000,-1300.0,0.00024933,2]
[421854619,1778231443000,-250.39,0.00024946,7]
[421854617,1778231443000,-1245.0,0.00024933,2]
[421854608,1778231443000,-1300.0,0.00024933,2]
[421854607,1778231443000,-216.0,0.0002493,30]
[421854609,1778231443000,-1300.0,0.00024933,2]
[421854613,1778231443000,-1300.0,0.00024933,2]
[421854612,1778231443000,-1300.0,0.00024933,2]
[421854615,1778231443000,-1300.0,0.00024933,2]
[421854614,1778231443000,-1300.0,0.00024933,2]
[421854602,1778231443000,-711.97705762,0.00024732,2]
[421854610,1778231443000,-1300.0,0.00024933,2]
[421854641,1778231443000,-209.43477557,0.00025,2]
[421854642,1778231443000,-639.56045727,0.00025,2]
[421854626,1778231443000,-2225.98582015,0.00025,2]
[421854637,1778231443000,-297.5468363,0.00025,2]
[421854611,1778231443000,-1300.0,0.00024933,2]
[421854639,1778231443000,-632.44256177,0.00025,2]
[421854628,1778231443000,-169.26214873,0.00025,2]
[421854634,1778231443000,-150.0,0.00025,2]
[421854632,1778231443000,-150.44479217,0.00025,2]
[421854623,1778231443000,-7211.57320234,0.00025,2]
[421854621,1778231443000,-711.97705762,0.00024981,2]
[421854625,1778231443000,-6482.9741656,0.00025,7]
[421854620,1778231443000,-711.97705762,0.00024968,2]
[421854630,1778231443000,-4846.47922267,0.00025,2]
[421854795,1778231444000,-273.99,0.000274,7]
[421854793,1778231444000,-150.3101093,0.00027397,5]
[421854791,1778231444000,-20703.05,0.00027397,10]
[421854789,1778231444000,-24843.66,0.00027397,10]
[421854784,1778231444000,-151.0,0.00027397,2]
[421854776,1778231444000,-151.0,0.00027397,2]
[421854788,1778231444000,-14508.42,0.00027397,10]
[421854786,1778231444000,-151.0,0.00027397,2]
[421854780,1778231444000,-151.0,0.00027397,2]
[421854778,1778231444000,-151.0,0.00027397,2]
[421854772,1778231444000,-1000.0,0.00027397,20]
[421854782,1778231444000,-274.715704,0.00027397,2]
[421854797,1778231444000,-9202.58,0.000274,7]
[421854807,1778231444000,-350.0,0.00027674,2]
[421854808,1778231444000,-350.0,0.00027674,2]
[421854799,1778231444000,-1962.5,0.000274,14]
[421854816,1778231444000,-350.0,0.00027674,2]
[421854803,1778231444000,-160.0,0.000274,33]
[421854818,1778231444000,-350.0,0.00027674,2]
[421854812,1778231444000,-350.0,0.00027674,2]
[421854805,1778231444000,-203.80660199,0.000275,2]
[421854814,1778231444000,-350.0,0.00027674,2]
[421854810,1778231444000,-350.0,0.00027674,2]
[421854822,1778231444000,-436.0,0.00027674,2]
[421854820,1778231444000,-350.0,0.00027674,2]
[421854774,1778231444000,-151.0,0.00027397,2]
[421854836,1778231444000,-214.68143985,0.00028,7]
[421854801,1778231444000,-529.32,0.000274,7]
[421854770,1778231444000,-200.0,0.00027397,2]
[421854739,1778231444000,-282.607,0.00027057,2]
[421854764,1778231444000,-4162.14190344,0.0002739,2]
[421854834,1778231444000,-207.99170503,0.00028,10]
[421854712,1778231444000,-719.19942127,0.000264,2]
[421854714,1778231444000,-392.29050513,0.000264,2]
[421854716,1778231444000,-5529.0,0.000266,5]
[421854720,1778231444000,-152.0,0.0002693,4]
[421854722,1778231444000,-289.0,0.0002695,2]
[421854724,1778231444000,-150.0,0.0002695,2]
[421854726,1778231444000,-255.0,0.0002695,2]
[421854729,1778231444000,-150.25,0.00027,2]
[421854731,1778231444000,-250.0,0.00027,2]
[421854728,1778231444000,-180.0,0.00026979,2]
[421854733,1778231444000,-1047.18364639,0.00027,2]
[421854735,1778231444000,-530.0,0.00027,2]
[421854740,1778231444000,-6548.0,0.00027123,2]
[421854742,1778231444000,-3559.0,0.00027123,2]
[421854737,1778231444000,-2130.38088,0.00027,2]
[421854744,1778231444000,-284.0,0.00027123,2]
[421854746,1778231444000,-190.14556478,0.00027123,2]
[421854748,1778231444000,-300.0,0.00027178,2]
[421854750,1778231444000,-300.0,0.00027178,2]
[421854758,1778231444000,-392.8,0.00027296,2]
[421854752,1778231444000,-150.0,0.0002719,2]
[421854754,1778231444000,-300.0,0.00027205,2]
[421854762,1778231444000,-136936.7724218,0.00027296,2]
[421854766,1778231444000,-8222.45697161,0.0002739,2]
[421854760,1778231444000,-1488.0783074,0.00027296,2]
[421854756,1778231444000,-300.0,0.00027233,2]
[421854768,1778231444000,-1500.0,0.00027397,2]
[421854838,1778231444000,-168.88,0.00028153,3]
[421854718,1778231444000,-180.0,0.00026673,2]
[421854828,1778231444000,-500.0,0.000278,7]
[421854902,1778231444000,-350.0,0.0002906,2]
[421854900,1778231444000,-350.0,0.0002906,2]
[421854904,1778231444000,-350.0,0.0002906,2]
[421854917,1778231444000,-166.93,0.00029074,30]
[421854915,1778231444000,-283.0,0.0002906,2]
[421854918,1778231444000,-166.93,0.00029105,2]
[421854920,1778231444000,-166.93,0.00029169,30]
[421854919,1778231444000,-166.93,0.00029137,7]
[421854922,1778231444000,-273.99,0.000292,7]
[421854911,1778231444000,-350.0,0.0002906,2]
[421854906,1778231444000,-350.0,0.0002906,2]
[421854909,1778231444000,-350.0,0.0002906,2]
[421854923,1778231444000,-9202.58,0.000292,7]
[421854893,1778231444000,-207.99170503,0.00029,30]
[421854907,1778231444000,-350.0,0.0002906,2]
[421854929,1778231444000,-420.9,0.000293,7]
[421854925,1778231444000,-166.93,0.00029201,2]
[421854931,1778231444000,-168.88,0.00029372,3]
[421854933,1778231444000,-160.0,0.000294,39]
[421854940,1778231444000,-350.0,0.00029589,2]
[421854935,1778231444000,-150.0,0.00029534,2]
[421854942,1778231444000,-350.0,0.00029589,2]
[421854938,1778231444000,-350.0,0.00029589,2]
[421854948,1778231444000,-350.0,0.00029589,2]
[421854952,1778231444000,-350.0,0.00029589,2]
[421854954,1778231444000,-350.0,0.00029589,2]
[421854956,1778231444000,-350.0,0.00029589,2]
[421854842,1778231444000,-152.0,0.00028309,5]
[421854927,1778231444000,-166.94,0.00029232,7]
[421854895,1778231444000,-166.93,0.0002901,2]
[421854913,1778231444000,-350.0,0.0002906,2]
[421854887,1778231444000,-529.32,0.00029,7]
[421854840,1778231444000,-704.3,0.00028267,2]
[421854898,1778231444000,-166.93,0.00029042,7]
[421854844,1778231444000,-160.0,0.000284,36]
[421854826,1778231444000,-271.0,0.00027723,2]
[421854830,1778231444000,-217.27,0.000279,14]
[421854832,1778231444000,-5582.28724155,0.00028,2]
[421854824,1778231444000,-150.0,0.00027723,2]
[421854846,1778231444000,-7321.0,0.00028452,2]
[421854848,1778231444000,-166.93,0.0002863,2]
[421854852,1778231444000,-166.93,0.00028661,7]
[421854862,1778231444000,-158.97,0.00028725,2]
[421854856,1778231444000,-166.93,0.00028693,30]
[421854854,1778231444000,-158.97,0.00028661,7]
[421854864,1778231444000,-166.93,0.00028756,7]
[421854850,1778231444000,-158.97,0.0002863,2]
[421854866,1778231444000,-158.97,0.00028756,7]
[421854883,1778231444000,-166.93,0.00028979,30]
[421854860,1778231444000,-166.93,0.00028725,2]
[421854885,1778231444000,-1962.5,0.00029,14]
[421854892,1778231444000,-160.0,0.00029,30]
[421854880,1778231444000,-166.93,0.00028947,7]
[421854878,1778231444000,-166.93,0.00028915,2]
[421854876,1778231444000,-166.93,0.00028883,30]
[421854889,1778231444000,-3460.49376688,0.00029,4]
[421854872,1778231444000,-166.93,0.0002882,2]
[421854871,1778231444000,-175.51,0.00028798,7]
[421854868,1778231444000,-166.93,0.00028788,30]
[421854858,1778231444000,-158.97,0.00028693,30]
[421854874,1778231444000,-166.93,0.00028852,7]
[421855041,1778231445000,-501.42,0.00030237,7]
[421855045,1778231445000,-160.0,0.000304,42]
[421855043,1778231445000,-704.3,0.00030239,2]
[421855047,1778231445000,-341.0,0.00030411,14]
[421855033,1778231445000,-12016.6931377,0.00030147,2]
[421855031,1778231445000,-176.82713062,0.00030137,2]
[421855039,1778231445000,-719.19942127,0.00030233,2]
[421855029,1778231445000,-150.0,0.00030137,2]
[421855026,1778231445000,-150.0,0.00030137,2]
[421855037,1778231445000,-1085.36,0.000302,30]
[421855049,1778231445000,-200.0,0.00030437,2]
[421855035,1778231445000,-150.0,0.0003019,2]
[421855051,1778231445000,-1962.5,0.000305,14]
[421855090,1778231445000,-281.0,0.0003105,30]
[421855053,1778231445000,-200.0,0.00030742,2]
[421855065,1778231445000,-150.0,0.00031011,2]
[421855067,1778231445000,-627.0,0.00031044,30]
[421855069,1778231445000,-152.0,0.00031044,30]
[421855055,1778231445000,-273.99,0.00031,7]
[421855073,1778231445000,-207.0,0.00031044,30]
[421855059,1778231445000,-207.99170503,0.00031,7]
[421855061,1778231445000,-151.0,0.00031,7]
[421855057,1778231445000,-9202.58,0.00031,7]
[421855071,1778231445000,-154.0,0.00031044,30]
[421855075,1778231445000,-157.0,0.00031044,30]
[421855077,1778231445000,-157.0,0.00031044,30]
[421855006,1778231445000,-192.96872237,0.00030137,40]
[421855063,1778231445000,-151.0,0.00031,7]
[421855024,1778231445000,-150.0,0.00030137,2]
[421854958,1778231445000,-350.0,0.00029589,2]
[421855002,1778231445000,-200.0,0.00030137,2]
[421855080,1778231445000,-630.0,0.00031044,30]
[421854966,1778231445000,-7632.0,0.00029856,2]
[421854960,1778231445000,-247.0,0.00029589,2]
[421854962,1778231445000,-152.0,0.00029687,6]
[421854964,1778231445000,-523.09322645,0.00029813,2]
[421854968,1778231445000,-478.48344739,0.00029863,2]
[421854970,1778231445000,-795.43212332,0.0003,2]
[421854975,1778231445000,-341.0,0.0003,14]
[421854972,1778231445000,-48570.51218097,0.0003,60]
[421854979,1778231445000,-1085.36,0.0003,30]
[421854977,1778231445000,-162.0,0.0003,14]
[421854981,1778231445000,-7845.0,0.00030065,2]
[421854983,1778231445000,-1085.36,0.000301,30]
[421854987,1778231445000,-642.92844605,0.0003013,2]
[421854985,1778231445000,-166.69,0.00030123,2]
[421854989,1778231445000,-226.31,0.00030136,7]
[421854991,1778231445000,-226.3,0.00030136,8]
[421854995,1778231445000,-200.0,0.00030136,2]
[421854993,1778231445000,-150.0,0.00030136,30]
[421854998,1778231445000,-180.49,0.00030137,2]
[421855000,1778231445000,-151.625835,0.00030137,7]
[421855010,1778231445000,-1401.14,0.00030137,2]
[421855012,1778231445000,-150.0,0.00030137,2]
[421855014,1778231445000,-150.0,0.00030137,2]
[421855018,1778231445000,-150.0,0.00030137,2]
[421855016,1778231445000,-150.0,0.00030137,2]
[421855020,1778231445000,-150.0,0.00030137,2]
[421855004,1778231445000,-1000.0,0.00030137,120]
[421855008,1778231445000,-378.44,0.00030137,2]
[421855022,1778231445000,-150.0,0.00030137,2]
[421855088,1778231445000,-158.0,0.0003105,30]
[421855100,1778231445000,-1000.0,0.000315,7]
[421855096,1778231445000,-160.0,0.000314,45]
[421855158,1778231445000,-159.0,0.0003205,30]
[421855167,1778231445000,-151.0,0.0003205,30]
[421855160,1778231445000,-158.0,0.0003205,30]
[421855170,1778231445000,-151.0,0.0003205,30]
[421855176,1778231445000,-1962.5,0.000323,14]
[421855172,1778231445000,-151.0,0.0003205,30]
[421855165,1778231445000,-151.0,0.0003205,30]
[421855163,1778231445000,-151.0,0.0003205,30]
[421855162,1778231445000,-151.0,0.0003205,30]
[421855161,1778231445000,-281.0,0.0003205,30]
[421855174,1778231445000,-704.3,0.0003221,5]
[421855164,1778231445000,-151.0,0.0003205,30]
[421855178,1778231445000,-196.634585,0.000323,7]
[421855155,1778231445000,-630.0,0.00032044,30]
[421855188,1778231445000,-9202.58,0.000325,7]
[421855182,1778231445000,-160.0,0.000324,49]
[421855186,1778231445000,-273.99,0.000325,7]
[421855180,1778231445000,-151.33545118,0.00032305,2]
[421855190,1778231445000,-151.0,0.000325,7]
[421855192,1778231445000,-150.0,0.00032562,2]
[421855184,1778231445000,-152.0,0.00032444,8]
[421855196,1778231445000,-333.0,0.00032877,120]
[421855199,1778231445000,-3119.4763673,0.00033,120]
[421855201,1778231445000,-160.0,0.00033,120]
[421855092,1778231445000,-152.0,0.00031065,7]
[421855206,1778231445000,-8697.25554286,0.00033,2]
[421855208,1778231445000,-214.68143985,0.00033,7]
[421855203,1778231445000,-207.99170503,0.00033,120]
[421855194,1778231445000,-7845.0,0.00032654,2]
[421855153,1778231445000,-157.0,0.00032044,30]
[421855205,1778231445000,-570.536126,0.00033,14]
[421855133,1778231445000,-17183.93586899,0.00032,3]
[421855151,1778231445000,-157.0,0.00032044,30]
[421855094,1778231445000,-200.0,0.00031096,2]
[421855098,1778231445000,-420.9,0.000315,7]
[421855082,1778231445000,-200.0,0.00031049,2]
[421855085,1778231445000,-167.58765535,0.0003105,30]
[421855103,1778231445000,-209.0175839,0.000315,2]
[421855102,1778231445000,-209.01758392,0.000315,2]
[421855105,1778231445000,-209.0175839,0.000315,2]
[421855108,1778231445000,-341.0,0.00031644,14]
[421855118,1778231445000,-151.0,0.00031845,7]
[421855122,1778231445000,-246.142104,0.00031845,7]
[421855113,1778231445000,-151.0,0.00031845,7]
[421855110,1778231445000,-8954.0,0.00031845,2]
[421855124,1778231445000,-206.677729,0.00031845,7]
[421855084,1778231445000,-159.0,0.0003105,30]
[421855116,1778231445000,-151.0,0.00031845,7]
[421855112,1778231445000,-151.0,0.00031845,7]
[421855145,1778231445000,-152.0,0.00032044,30]
[421855135,1778231445000,-207.99170503,0.00032,3]
[421855149,1778231445000,-207.0,0.00032044,30]
[421855141,1778231445000,-254.783084,0.00032,7]
[421855137,1778231445000,-214.68143985,0.00032,3]
[421855143,1778231445000,-627.0,0.00032044,30]
[421855129,1778231445000,-5875.83782379,0.00032,120]
[421855147,1778231445000,-162.21752122,0.00032044,30]
[421855139,1778231445000,-151.0,0.00032,7]
[421855120,1778231445000,-151.0,0.00031845,7]
[421855131,1778231445000,-165.63697809,0.00032,120]
[421855126,1778231445000,-174.14346977,0.00032,120]
[421855258,1778231446000,-627.0,0.00034044,30]
[421855278,1778231446000,-704.3,0.00034182,7]
[421855255,1778231446000,-9451.0,0.00033951,2]
[421855272,1778231446000,-158.0,0.0003405,30]
[421855256,1778231446000,-333.0,0.00034027,120]
[421855274,1778231446000,-281.0,0.0003405,30]
[421855276,1778231446000,-719.19942127,0.00034067,2]
[421855280,1778231446000,-150.0,0.0003419,2]
[421855282,1778231446000,-157.0,0.00034247,120]
[421855284,1778231446000,-333.0,0.00034329,120]
[421855290,1778231446000,-4453.38,0.0003461,30]
[421855260,1778231446000,-152.0,0.00034044,30]